bitfinex/quotes_ETHUSD_20251010
["timestamp","ask_amount","ask_price","bid_price","bid_amount"]
[1760115497387,42.69424819,4116.7,4116.6,0.002]
[1760115497912,48.15294482,4116.7,4116.6,0.002]
[1760115498409,25.48294482,4116.7,4116.6,0.002]
[1760115498604,19.15494482,4116.7,4116.6,0.002]
[1760115498982,11.82494482,4116.7,4116.6,0.002]
[1760115499188,41.82494482,4116.7,4116.6,0.002]
[1760115499547,11.82494482,4116.7,4116.6,0.002]
[1760115499811,5.30434482,4116.7,4116.6,0.002]
[1760115499997,6.4066147,4116.7,4116.6,0.002]
[1760115500321,8.3266147,4116.7,4116.6,0.002]
[1760115500833,7.805,4116.7,4116.6,0.002]
[1760115501698,1.92,4116.7,4116.6,0.002]
[1760115501917,7.803,4116.7,4116.6,0.002]
[1760115503325,5.883,4116.7,4116.6,2.43118913]
[1760115503513,0.001,4117.2,4116.8,2.42905128]
[1760115503711,1.92,4117.0,4116.8,2.42905128]
[1760115503918,0.001,4117.2,4116.9,0.02429012]
[1760115503919,0.1218,4117.2,4116.9,0.02429012]
[1760115504227,3.858,4117.1,4117.0,2.88205312]
[1760115504427,3.858,4117.1,4117.0,2.42895312]
[1760115504925,0.001,4117.2,4117.1,2.42889412]
[1760115505137,0.001,4117.2,4117.1,3.00279412]
[1760115505353,0.001,4117.2,4117.1,3.02708306]
[1760115505634,0.001,4117.2,4117.1,2.88199412]
[1760115505803,0.001,4117.2,4117.1,17.50279412]
[1760115507723,0.001,4117.2,4117.1,17.04969412]
[1760115507900,0.001,4117.2,4117.1,17.50279412]
[1760115509608,0.001,4117.2,4117.1,21.99339412]
[1760115509927,0.001,4117.2,4117.1,23.91339412]
[1760115510230,0.001,4117.2,4117.1,19.42279412]
[1760115510414,0.001,4117.2,4117.1,23.15899412]
[1760115510596,0.001,4117.2,4117.1,23.79259412]
[1760115510804,0.001,4117.2,4117.1,21.23899412]
[1760115510997,0.001,4117.2,4117.1,17.38199412]
[1760115512722,0.001,4117.2,4117.1,19.93559412]
[1760115512889,0.001,4117.2,4117.1,5.43559412]
[1760115513401,0.001,4117.2,4117.1,2.88199412]
[1760115513929,0.001,4117.2,4117.1,17.38199412]
[1760115515396,0.001,4117.2,4117.1,18.01559412]
[1760115515792,0.001,4117.2,4117.1,17.38199412]
[1760115517625,0.001,4117.2,4117.1,16.92889412]
[1760115517795,0.001,4117.2,4117.1,2.42889412]
[1760115518225,0.001,4117.2,4117.1,16.92889412]
[1760115518441,0.001,4117.2,4117.1,17.38199412]
[1760115520353,0.001,4117.2,4117.1,17.50279412]
[1760115520717,0.001,4117.2,4117.1,21.35879412]
[1760115521549,0.001,4117.2,4117.1,21.99239412]
[1760115521752,0.001,4118.1,4118.0,2.42836328]
[1760115521753,1e-08,4118.1,4118.0,2.42836328]
[1760115521959,1e-08,4118.1,4118.0,6.28436328]
[1760115522124,1e-08,4118.1,4118.0,7.37106328]
[1760115522544,1e-08,4118.1,4118.0,9.29106328]
[1760115522754,1e-08,4118.1,4118.0,23.79106328]
[1760115523164,1e-08,4118.1,4118.0,19.93506328]
[1760115523457,1e-08,4118.1,4118.0,23.79106328]
[1760115524820,1e-08,4118.1,4118.0,19.93506328]
[1760115525025,1e-08,4118.1,4118.0,25.81306328]
[1760115525560,1e-08,4118.1,4118.0,41.62761703]
[1760115526467,1e-08,4118.1,4118.0,19.48196328]
[1760115526666,1e-08,4118.1,4118.0,25.79706328]
[1760115527864,1e-08,4118.1,4118.0,26.27613011]
[1760115528068,1e-08,4118.1,4118.0,20.39813011]
[1760115528376,1e-08,4118.1,4118.0,26.27613011]
[1760115529672,1e-08,4118.1,4118.0,20.39813011]
[1760115530192,0.001,4119.8,4118.8,2.42789161]
[1760115530540,0.001,4119.8,4118.8,2.86809161]
[1760115531355,0.2345,4119.8,4118.8,6.28189161]
[1760115531680,0.001,4119.8,4118.8,6.72209161]
[1760115531976,0.001,4119.8,4118.8,2.98889161]
[1760115532147,0.02434112,4119.7,4118.8,2.54869161]
[1760115532574,0.02434112,4119.7,4118.8,2.98889161]
[1760115532778,1.94434112,4119.7,4118.8,2.54869161]
[1760115532975,1.94434112,4119.7,4118.8,0.1208]
[1760115533143,0.02434112,4119.7,4118.8,2.54869161]
[1760115533476,0.02434112,4119.7,4118.5,0.17]
[1760115533477,2.0408,4118.8,4118.2,0.1208]
[1760115533676,0.02434112,4118.7,4118.2,0.1208]
[1760115534047,0.02434112,4118.7,4118.2,2.5490406]
[1760115534249,0.02434112,4118.7,4118.2,0.1208]
[1760115534578,0.001,4118.1,4117.7,0.1208]
[1760115534944,0.02534112,4118.1,4117.7,0.1208]
[1760115535157,0.001,4118.1,4117.9,2.42842217]
[1760115535354,0.02534112,4118.1,4117.7,0.1208]
[1760115535569,0.02534112,4118.1,4117.7,2.54928449]
[1760115535782,0.4749,4118.0,4117.3,2.42872499]
[1760115535967,0.4749,4118.0,4117.4,0.1208]
[1760115535968,0.02434112,4117.9,4117.4,0.1208]
[1760115536277,0.1208,4117.7,4117.1,0.002]
[1760115536478,0.02434112,4117.6,4117.1,2.43086985]
[1760115536853,0.02434112,4117.6,4117.4,2.42870104]
[1760115537393,2.023,4118.0,4117.6,2.42855677]
[1760115537576,0.02434112,4117.9,4117.6,2.42855677]
[1760115537770,2.023,4118.0,4117.8,2.42842732]
[1760115538176,0.1218,4118.1,4117.5,14.5]
[1760115538357,0.001,4118.1,4118.0,2.42836328]
[1760115538572,0.001,4118.1,4118.0,2.54916328]
[1760115538973,0.001,4118.1,4117.5,14.5]
[1760115539167,0.001,4118.1,4117.7,0.1208]
[1760115539549,0.001,4118.1,4117.9,2.42842015]
[1760115539892,0.001,4118.1,4117.7,0.1208]
[1760115540180,0.001,4118.1,4117.6,2.42859918]
[1760115540350,0.4759,4118.1,4117.6,2.42859918]
[1760115540548,0.4759,4118.1,4117.5,14.6208]
[1760115540549,2.42853288,4117.8,4117.5,14.5]
[1760115540891,0.2335,4117.6,4117.1,2.43089303]
[1760115541074,0.2335,4117.6,4117.1,0.002]
[1760115541402,0.1208,4117.3,4117.1,0.002]
[1760115541710,10.25017625,4117.2,4117.1,0.002]
[1760115541867,10.70073513,4117.2,4117.1,0.002]
[1760115542262,41.2215674,4117.2,4117.1,0.002]
[1760115543295,41.8551674,4117.2,4117.1,0.002]
[1760115544086,42.50698625,4117.2,4117.1,0.002]
[1760115544401,41.8551674,4117.2,4117.1,0.002]
[1760115544786,16.44815375,4116.7,4116.5,0.002]
[1760115544985,55.17311614,4116.7,4116.5,0.002]
[1760115545300,25.64801614,4116.7,4116.5,0.002]
[1760115545485,55.64801614,4116.7,4116.5,0.002]
[1760115546906,0.6336,4116.4,4116.2,0.002]
[1760115547107,34.3496613,4115.8,4115.7,0.002]
[1760115547305,55.17364732,4115.8,4115.7,0.002]
[1760115547484,55.64854732,4115.8,4115.7,0.002]
[1760115548290,55.12771505,4115.8,4115.7,0.002]
[1760115548706,29.7241613,4115.8,4115.7,0.002]
[1760115548894,8.2739,4115.8,4115.7,0.002]
[1760115549309,10.7035613,4115.8,4115.7,0.002]
[1760115549888,56.51811505,4115.8,4115.7,0.002]
[1760115550119,57.15171505,4115.8,4115.7,0.002]
[1760115550924,2.42937947,4116.3,4115.7,0.002]
[1760115551088,6.30880301,4116.2,4115.7,0.002]
[1760115552145,7.8,4115.8,4115.7,0.002]
[1760115552488,8.2749,4115.8,4115.7,0.002]
[1760115552685,10.7045613,4115.8,4115.7,0.002]
[1760115553615,40.7045613,4115.8,4115.7,0.002]
[1760115554036,28.7019,4115.8,4115.7,0.002]
[1760115554233,7.8,4115.8,4115.7,0.002]
[1760115554388,1.92,4115.8,4115.7,0.002]
[1760115554719,7.9208,4115.8,4115.7,0.002]
[1760115554926,10.9840613,4115.8,4115.7,0.002]
[1760115555129,57.15271505,4115.8,4115.7,0.002]
[1760115555488,41.3381613,4115.8,4115.7,0.002]
[1760115557231,11.3381613,4115.8,4115.7,0.002]
[1760115557437,41.3381613,4115.8,4115.7,0.002]
[1760115557813,41.43563538,4115.8,4115.7,0.002]
[1760115558444,41.95276478,4115.8,4115.7,0.002]
[1760115558842,44.51476478,4115.8,4115.7,0.002]
[1760115559348,41.95276478,4115.8,4115.7,0.002]
[1760115559672,36.07276478,4115.8,4115.7,0.002]
[1760115559846,48.28176478,4115.8,4115.7,0.002]
[1760115560143,55.41176478,4115.8,4115.7,0.002]
[1760115560649,33.0635565,4115.3,4115.2,0.002]
[1760115560966,0.6336,4115.0,4113.2,0.002]
[1760115561256,41.5357595,4114.9,4113.2,0.002]
[1760115561423,20.75942211,4114.9,4113.2,0.002]
[1760115561624,20.75942211,4114.9,4113.5,2.43101517]
[1760115561625,22.78491497,4114.9,4113.5,2.43101517]
[1760115561843,22.78491497,4114.9,4113.9,2.43075585]
[1760115562050,21.08429271,4114.9,4113.2,0.4716]
[1760115562453,41.81937183,4114.9,4113.6,2.43292206]
[1760115562622,41.81937183,4114.9,4113.8,2.43082923]
[1760115562822,41.81937183,4114.9,4113.9,2.43077855]
[1760115563151,19.54457912,4114.9,4113.7,14.502]
[1760115563353,1.30008897,4115.9,4114.8,2.43225177]
[1760115563354,0.64662567,4115.6,4114.8,2.43225177]
[1760115563541,2.16446651,4117.3,4115.4,2.42988001]
[1760115563542,3.061,4115.5,4115.4,2.42988001]
[1760115563858,3.061,4115.5,4115.4,2.42989745]
[1760115564061,4.981,4115.5,4115.4,2.42989745]
[1760115564357,3.061,4115.5,4115.4,2.42989745]
[1760115566525,8.061,4115.5,4115.4,2.42989745]
[1760115567228,8.061,4115.5,4115.3,0.1208]
[1760115567554,8.061,4115.5,4115.4,16.92989745]
[1760115567931,8.061,4115.5,4115.4,14.5]
[1760115568134,8.4975,4115.5,4114.0,0.4696]
[1760115568339,0.1208,4115.3,4114.8,2.43220015]
[1760115568553,3.88034112,4115.2,4114.8,2.43223548]
[1760115569073,3.88034112,4115.2,4115.0,2.43013365]
[1760115569074,3.856,4115.2,4115.0,2.43013365]
[1760115569228,3.856,4115.1,4115.0,2.43009053]
[1760115569423,3.856,4115.1,4114.9,0.5904]
[1760115569424,3.856,4115.1,4114.9,0.1208]
[1760115569654,3.856,4115.1,4115.0,16.93013365]
[1760115570326,3.856,4115.1,4115.0,14.5]
[1760115570767,3.856,4115.1,4115.0,16.93013365]
[1760115571765,3.856,4115.1,4115.0,17.39973365]
[1760115575645,3.856,4115.1,4115.0,14.5]
[1760115575976,3.856,4115.1,4115.0,16.93013365]
[1760115578065,5.0,4115.5,4115.4,2.42989745]
[1760115578249,5.0,4115.5,4115.4,2.89949745]
[1760115578653,5.0,4115.5,4115.4,17.39949745]
[1760115578853,0.001,4115.8,4115.7,2.42972033]
[1760115579090,0.001,4115.8,4115.7,6.31001753]
[1760115579294,0.001,4115.8,4115.7,9.30892033]
[1760115579877,0.001,4115.8,4115.7,23.80892033]
[1760115582326,0.001,4115.8,4115.7,23.17432033]
[1760115583375,0.001,4115.8,4115.7,23.80792033]
[1760115583776,0.001,4115.8,4115.7,19.95292033]
[1760115584011,1e-08,4116.7,4116.6,2.42918913]
[1760115584215,1e-08,4116.7,4116.6,8.20418913]
[1760115584378,1e-08,4116.7,4116.6,9.30738913]
[1760115584901,1e-08,4116.7,4116.6,23.80738913]
[1760115586612,1e-08,4116.7,4116.6,39.10703029]
[1760115587714,1e-08,4116.7,4116.6,19.95238913]
[1760115587887,1e-08,4116.7,4116.6,25.83038913]
[1760115588093,1e-08,4116.7,4116.6,25.95118913]
[1760115589016,1e-08,4116.7,4116.6,22.09718913]
[1760115589183,1e-08,4116.7,4116.6,25.95118913]
[1760115589786,1e-08,4116.7,4116.6,19.31878913]
[1760115590223,1e-08,4116.7,4116.6,17.39878913]
[1760115590691,1e-08,4116.7,4116.6,23.17178913]
[1760115591521,1e-08,4116.7,4116.6,23.80538913]
[1760115592107,1e-08,4116.7,4116.6,19.31878913]
[1760115592308,1e-08,4116.7,4116.6,23.17178913]
[1760115592483,1e-08,4116.7,4116.6,14.9421]
[1760115592798,1e-08,4116.7,4116.6,23.14428913]
[1760115593195,1e-08,4116.7,4116.6,21.22428913]
[1760115593419,1e-08,4116.7,4116.6,14.5]
[1760115593636,1e-08,4116.7,4116.6,19.29128913]
[1760115594325,1e-08,4116.7,4116.6,18.84918913]
[1760115594635,1e-08,4116.7,4116.6,16.92918913]
[1760115595640,1e-08,4116.7,4116.6,17.37128913]
[1760115598205,1e-08,4116.7,4116.6,16.92918913]
[1760115599765,1e-08,4116.7,4116.6,14.5]
[1760115599908,1e-08,4116.7,4116.6,14.6208]
[1760115600440,1e-08,4116.7,4116.0,6.2141]
[1760115600441,4.30020001,4116.7,4114.8,3.854]
[1760115600613,0.02434112,4116.6,4115.4,2.42989745]
[1760115600951,0.02434112,4116.6,4115.5,14.5]
[1760115601192,0.4482,4116.5,4115.5,14.5]
[1760115601341,2.04834112,4116.4,4115.5,14.5]
[1760115601547,4.47765903,4116.4,4115.5,14.5]
[1760115601746,2.42946728,4116.2,4115.5,14.5]
[1760115602088,0.47254112,4116.1,4115.0,0.123506]
[1760115602296,2.42969209,4115.8,4115.0,0.123506]
[1760115602459,0.47254112,4115.7,4115.0,0.123506]
[1760115602659,5.876,4115.6,4115.1,14.5]
[1760115602848,0.47254112,4115.5,4115.1,14.5]
[1760115603248,0.4482,4115.4,4115.0,0.123506]
[1760115603463,0.02434112,4115.3,4115.0,0.123506]
[1760115603665,0.4482,4115.2,4115.0,0.123506]
[1760115603870,0.47254112,4115.1,4115.0,0.123506]
[1760115604480,3.87634112,4115.1,4115.0,0.123506]
[1760115604650,5.90034112,4115.1,4115.0,0.123506]
[1760115604867,5.876,4115.1,4115.0,0.123506]
[1760115605070,6.3242,4115.1,4115.0,0.123506]
[1760115605505,11.3078746,4115.1,4115.0,0.123506]
[1760115605808,57.12726155,4115.1,4115.0,0.123506]
[1760115605968,57.12726155,4115.1,4115.0,6e-06]
[1760115606691,10.99354579,4115.1,4115.0,6e-06]
[1760115606895,21.3998,4115.1,4115.0,6e-06]
[1760115607104,23.8298746,4115.1,4115.0,6e-06]
[1760115607467,21.3998,4115.1,4115.0,6e-06]
[1760115607669,47.6348746,4115.1,4115.0,6e-06]
[1760115607988,47.6348746,4115.1,4114.8,0.002]
[1760115607989,40.6336,4114.9,4114.8,0.002]
[1760115608190,2.5536,4114.8,4114.7,0.002]
[1760115608391,35.97522402,4114.8,4114.7,0.002]
[1760115608619,35.97522402,4114.8,4114.5,0.002]
[1760115608620,4.9839699,4114.6,4114.5,0.002]
[1760115608815,2.43060619,4114.2,4113.6,0.002]
[1760115608972,2.43060619,4114.2,4111.5,0.1477]
[1760115608973,2.5536,4114.1,4111.2,0.1517]
[1760115609180,50.51207917,4113.3,4111.3,0.4421]
[1760115609393,62.71807917,4113.3,4110.9,1.92]
[1760115609605,33.16627917,4113.3,4111.0,14.5]
[1760115609905,63.16627917,4113.3,4111.3,2.43230699]
[1760115610119,63.16627917,4113.3,4111.8,0.4421]
[1760115610120,2.5959,4113.3,4111.8,0.4421]
[1760115610269,38.49824112,4113.3,4111.8,0.4421]
[1760115610474,38.4739,4113.3,4112.2,0.1208]
[1760115610873,38.4739,4113.3,4111.8,0.4421]
[1760115610874,0.2277,4113.9,4112.8,2.43141329]
[1760115611118,0.1208,4113.3,4112.5,0.1208]
[1760115611273,0.1208,4113.3,4112.5,2.55240648]
[1760115611476,0.02434112,4113.6,4112.8,0.4421]
[1760115611710,2.025,4114.1,4114.0,2.43072435]
[1760115611896,2.276,4114.1,4113.5,2.43101981]
[1760115612097,0.4482,4115.1,4113.6,14.9664096]
[1760115612098,0.02434112,4114.8,4113.6,14.9664096]
[1760115612435,0.305,4114.7,4113.7,0.4421]
[1760115612748,0.25204112,4115.6,4114.7,2.43028361]
[1760115612946,0.25204112,4115.6,4114.9,2.43019271]
[1760115612947,5.878,4115.5,4114.9,2.43019271]
[1760115613120,0.02434112,4115.4,4114.7,0.4421]
[1760115613324,0.44820001,4116.7,4115.0,2.43013365]
[1760115613512,5.90234112,4116.6,4116.0,2.4295166]
[1760115613713,5.878,4116.5,4116.1,2.42945258]
[1760115613913,0.02434112,4116.4,4115.5,0.4421]
[1760115614349,0.02434112,4116.4,4115.6,14.5]
[1760115614567,1e-08,4116.7,4115.8,2.4296613]
[1760115614856,0.02434113,4116.7,4116.1,2.42948136]
[1760115615044,5.878,4116.6,4115.5,0.4421]
[1760115615220,0.02434112,4116.5,4115.6,14.5]
[1760115615415,0.4482,4116.4,4115.6,14.5]
[1760115615712,0.02434112,4116.5,4115.7,0.0242972]
[1760115615912,1e-08,4116.7,4116.6,2.42918913]
[1760115616354,1e-08,4116.7,4116.6,2.87848913]
[1760115616852,1e-08,4116.7,4116.6,17.37848913]
[1760115617412,1e-08,4116.7,4116.6,14.5]
[1760115617618,1e-08,4116.7,4116.6,16.92918913]
[1760115617844,1e-08,4116.7,4116.6,17.37848913]
[1760115618359,1e-08,4116.7,4116.6,14.9493]
[1760115618673,1e-08,4116.7,4116.6,16.92918913]
[1760115619166,1e-08,4116.7,4116.6,18.01208913]
[1760115619366,1e-08,4116.7,4116.6,19.93208913]
[1760115619548,0.001,4117.2,4116.7,0.6336]
[1760115619718,0.001,4117.2,4116.7,2.5536]
[1760115619964,0.001,4117.2,4117.1,2.42889412]
[1760115620159,0.001,4117.2,4117.1,4.34889412]
[1760115620460,0.001,4117.2,4117.1,4.79819412]
[1760115620670,0.001,4117.2,4117.1,4.34889412]
[1760115620882,0.001,4117.2,4116.6,14.9493]
[1760115621062,0.001,4117.2,4116.7,2.42910646]
[1760115621271,0.02534112,4117.2,4116.7,2.42910451]
[1760115621603,0.02534112,4117.2,4116.6,14.5]
[1760115621604,0.001,4117.2,4116.9,0.1208]
[1760115621961,0.001,4117.2,4117.1,0.1208]
[1760115622155,0.001,4117.2,4117.1,2.54969412]
[1760115622474,0.001,4117.2,4117.1,0.1208]
[1760115622668,0.001,4117.2,4116.6,14.5]
[1760115622871,0.001,4117.2,4117.1,2.42889412]
[1760115623184,0.001,4117.2,4116.9,0.1208]
[1760115623501,0.001,4117.2,4117.1,2.54969412]
[1760115623859,0.001,4117.2,4117.1,2.99899412]
[1760115624506,0.001,4117.2,4117.1,2.54969412]
[1760115624908,0.001,4117.2,4117.1,0.1208]
[1760115625198,0.001,4117.2,4116.9,0.1208]
[1760115625554,0.001,4117.2,4116.9,2.54979406]
[1760115625761,0.001,4117.2,4116.9,0.1208]
[1760115626600,0.001,4117.2,4117.1,2.42889412]
[1760115627808,0.001,4117.2,4117.0,0.02428953]
[1760115627809,0.001,4117.2,4116.9,0.1208]
[1760115628674,0.4329,4117.1,4116.4,0.1208]
[1760115628870,3.87434112,4117.0,4116.4,0.1208]
[1760115629185,2.024,4116.9,4116.4,0.1208]
[1760115629383,0.02434112,4116.8,4116.4,0.1208]
[1760115629788,0.02434112,4116.8,4116.5,2.42924814]
[1760115629990,0.001,4117.2,4116.6,0.47359189]
[1760115629991,0.02534112,4117.2,4116.6,0.47359189]
[1760115630297,0.001,4117.2,4117.1,2.42889412]
[1760115630625,0.001,4117.2,4117.1,4.49398306]
[1760115630975,0.001,4117.2,4117.1,19.44328306]
[1760115631260,0.001,4117.2,4117.1,19.41899412]
[1760115633112,0.001,4117.2,4117.1,16.5408]
[1760115633414,0.001,4117.2,4117.1,19.29819412]
[1760115633621,0.001,4117.2,4117.1,23.14719412]
[1760115633802,0.001,4117.2,4117.1,23.78079412]
[1760115634490,0.001,4117.7,4117.1,23.78079412]
[1760115634491,1e-08,4117.7,4117.3,0.6336]
[1760115634684,1e-08,4117.7,4117.2,4.34883513]
[1760115634685,1e-08,4117.7,4117.6,4.98219918]
[1760115635134,1e-08,4117.7,4117.6,5.43149918]
[1760115635341,1e-08,4118.9,4118.8,2.42789161]
[1760115635507,1e-08,4118.9,4118.8,10.22089161]
[1760115635715,1e-08,4118.9,4118.8,10.67019161]
[1760115636143,1e-08,4118.9,4118.8,25.17019161]
[1760115636808,1e-08,4118.9,4118.8,25.80379161]
[1760115637444,1e-08,4118.9,4118.8,25.80279161]
[1760115637643,1e-08,4118.9,4118.8,19.93079161]
[1760115638351,1e-08,4118.9,4118.8,25.80279161]
[1760115638857,1e-08,4118.9,4118.8,19.93079161]
[1760115639060,1e-08,4118.9,4118.8,25.80279161]
[1760115639241,1e-08,4118.9,4118.8,19.93079161]
[1760115639448,1e-08,4118.9,4118.8,25.80179161]
[1760115640548,1e-08,4118.9,4118.8,35.74615645]
[1760115641132,1e-08,4118.9,4118.8,17.37719161]
[1760115641349,1e-08,4118.9,4118.8,23.24719161]
[1760115641651,1e-08,4118.9,4118.8,19.29719161]
[1760115641859,1e-08,4118.9,4118.8,17.37719161]
[1760115642025,1e-08,4118.9,4118.8,14.5]
[1760115642229,1e-08,4118.9,4118.8,16.92789161]
[1760115642467,1e-08,4118.9,4118.8,14.5]
[1760115643168,1e-08,4118.9,4118.5,0.1208]
[1760115643347,0.02434113,4118.9,4118.7,2.42789979]
[1760115643542,1e-08,4118.9,4118.7,0.0242795]
[1760115643756,1e-08,4118.9,4118.8,6.27489161]
[1760115643943,1e-08,4118.9,4118.8,6.39569161]
[1760115644348,1e-08,4118.9,4118.8,2.54869161]
[1760115644550,1e-08,4118.9,4118.8,6.39469161]
[1760115644732,1e-08,4118.9,4118.8,0.1208]
[1760115645062,0.12080001,4118.9,4118.6,2.42796671]
[1760115645262,0.02434112,4118.8,4118.7,14.5]
[1760115645437,0.12080001,4118.9,4118.7,14.5]
[1760115645839,0.45724112,4118.8,4116.3,2.42935787]
[1760115646053,2.04734112,4118.8,4117.1,0.1517]
[1760115646286,0.02434113,4118.9,4117.6,14.5]
[1760115646470,1e-08,4118.9,4118.4,2.42807114]
[1760115646770,0.02434113,4118.9,4118.5,2.42805384]
[1760115646954,0.4476,4118.8,4118.1,3.846]
[1760115647266,0.02434112,4118.7,4117.6,14.9548]
[1760115647428,0.02434112,4118.7,4118.3,2.42817606]
[1760115647628,0.02434112,4118.7,4118.1,3.846]
[1760115647870,1e-08,4118.9,4118.8,2.42789161]
[1760115648036,1e-08,4118.9,4118.0,0.4548]
[1760115648226,1e-08,4118.9,4116.8,15.81536484]
[1760115648227,0.4431,4118.8,4117.5,0.446]
[1760115648426,0.02434112,4118.7,4117.7,2.4285402]
[1760115648667,0.02434112,4118.7,4117.8,3.846]
[1760115648832,0.02434112,4118.7,4118.2,2.42823131]
[1760115649168,0.02434112,4118.7,4117.8,6.27446938]
[1760115649368,0.02434112,4118.7,4117.8,3.846]
[1760115649672,0.4431,4118.6,4117.0,2.87493234]
[1760115649868,1.10104112,4118.5,4116.6,0.002]
[1760115650099,3.08591291,4118.4,4116.7,0.365]
[1760115650302,1.10104112,4118.3,4116.6,0.002]
[1760115650507,32.42829096,4118.2,4117.1,2.42889361]
[1760115650803,3.01078947,4118.1,4117.1,2.42884066]
[1760115650974,2.49044112,4118.1,4116.9,2.42901212]
[1760115651172,3.01078947,4118.1,4117.1,2.42889412]
[1760115651384,3.01078947,4118.1,4116.8,14.72403217]
[1760115651385,0.02434112,4118.1,4117.7,2.42850597]
[1760115651631,0.02434112,4118.1,4116.8,15.17003217]
[1760115651632,0.02434112,4118.1,4117.2,3.846]
[1760115651787,0.02434112,4118.4,4118.0,2.42830961]
[1760115652110,0.02434112,4118.4,4117.3,4.292]
[1760115652417,0.02434112,4118.4,4118.1,2.42824558]
[1760115652614,5.869,4118.7,4117.4,2.42871715]
[1760115652615,0.02434112,4118.5,4118.2,2.42820431]
[1760115652823,0.02434112,4118.5,4116.9,1.92]
[1760115652987,0.4431,4118.4,4117.0,1.92]
[1760115653176,0.02434112,4118.3,4117.6,2.42858982]
[1760115653372,0.02434112,4118.3,4117.7,16.92853387]
[1760115653691,0.02434112,4118.3,4117.8,2.42846397]
[1760115653894,0.02434112,4118.3,4117.7,14.5]
[1760115654496,0.02434112,4118.3,4117.7,16.9284947]
[1760115654696,0.02434112,4118.3,4117.8,2.42846077]
[1760115654896,0.02434112,4118.3,4117.7,16.92852663]
[1760115655294,0.02434112,4118.3,4117.7,14.5]
[1760115655519,0.02434112,4118.3,4117.3,3.846]
[1760115655721,0.02434112,4118.3,4116.8,0.22403217]
[1760115655722,13.8351,4118.2,4116.8,0.22403217]
[1760115655892,13.8351,4118.2,4117.2,2.4287775]
[1760115655893,0.54495623,4118.1,4117.2,2.4287775]
[1760115656216,0.54495623,4118.1,4117.2,14.5]
[1760115656217,4.2891,4118.0,4117.2,14.5]
[1760115656523,0.1208,4117.4,4117.2,14.5]
[1760115656729,0.1208,4117.4,4116.9,3.846]
[1760115656730,0.1208,4117.4,4116.8,0.34483217]
[1760115656883,0.02434112,4117.3,4116.8,0.22403217]
[1760115657088,2.42853876,4117.8,4116.8,0.22403217]
[1760115657089,0.1208,4117.0,4116.8,0.22403217]
[1760115657388,0.46744112,4116.9,4116.8,0.22403217]
[1760115658028,8.59544112,4116.9,4116.8,0.22403217]
[1760115658327,4.90671511,4116.9,4116.8,0.22403217]
[1760115658489,37.96932723,4116.9,4116.8,0.22403217]
[1760115658686,35.54031511,4116.9,4116.8,0.22403217]
[1760115658902,2.88371511,4116.9,4116.8,0.22403217]
[1760115659118,6.23344112,4116.9,4116.8,0.22403217]
[1760115659386,3.846,4116.9,4116.8,0.22403217]
[1760115659583,3.87034112,4116.9,4116.8,0.22403217]
[1760115659825,4.83376222,4116.9,4116.8,0.22403217]
[1760115660026,4.8094211,4116.9,4116.8,0.22403217]
[1760115660935,4.3663211,4116.9,4116.8,0.22403217]
[1760115661226,3.846,4117.5,4116.8,0.22403217]
[1760115661460,0.1208,4117.3,4116.8,2.6530872]
[1760115661666,0.02434112,4117.2,4117.0,2.42892162]
[1760115661816,0.02434112,4117.2,4117.1,2.42889412]
[1760115662422,0.02434112,4117.2,4116.8,2.6530872]
[1760115662423,0.46744112,4117.2,4116.8,0.22403217]
[1760115662628,0.4431,4117.1,4116.8,0.22403217]
[1760115662815,0.02434112,4117.0,4116.8,0.22403217]
[1760115663220,0.1208,4117.0,4116.8,0.22403217]
[1760115663438,3.99014112,4117.3,4116.9,2.42901212]
[1760115663649,0.1208,4117.3,4117.2,2.42883513]
[1760115663852,0.65067279,4118.3,4117.2,0.1208]
[1760115663853,0.1208,4117.8,4117.2,0.1208]
[1760115664035,0.02434112,4117.7,4117.5,2.4286445]
[1760115664360,0.02434112,4117.7,4117.5,2.42860698]
[1760115664530,0.02434112,4117.7,4116.8,2.6530597]
[1760115664531,0.4431,4117.6,4116.8,0.22403217]
[1760115664734,0.02434112,4117.5,4117.1,2.428893]
[1760115664930,0.46744112,4117.5,4116.8,0.22403217]
[1760115665236,0.46744112,4117.5,4117.0,2.42894046]
[1760115665556,0.02434112,4117.5,4116.8,0.22403217]
[1760115665748,0.02434112,4117.5,4117.3,2.42877283]
[1760115665944,3.845,4117.9,4117.5,2.42860949]
[1760115666143,0.02434112,4117.8,4117.5,2.42860949]
[1760115666321,0.02434112,4117.8,4117.4,2.42867375]
[1760115666522,0.02434112,4117.8,4116.8,0.22403217]
[1760115666723,2.4671,4118.8,4118.0,2.42836328]
[1760115666928,3.86934112,4118.7,4117.8,2.42843951]
[1760115667163,0.52034373,4118.6,4117.8,2.42843951]
[1760115667367,0.02434112,4118.5,4117.8,2.42843951]
[1760115667528,0.02434112,4118.5,4118.0,2.4283194]
[1760115667724,0.02434112,4118.5,4117.6,2.42859918]
[1760115668062,3.845,4118.7,4117.5,0.446]
[1760115668063,7.13,4118.4,4117.7,0.0242854]
[1760115668274,1e-08,4118.9,4117.7,2.87450298]
[1760115668450,1e-08,4118.9,4118.8,2.42789161]
[1760115668992,1e-08,4118.9,4118.8,4.79389161]
[1760115669289,1e-08,4118.9,4118.8,2.42789161]
[1760115669491,1e-08,4118.9,4118.3,0.446]
[1760115669647,0.4431,4118.8,4116.5,18.24459006]
[1760115669847,0.02434113,4118.9,4118.0,2.42835235]
[1760115670199,0.4431,4118.8,4118.0,2.42833854]
[1760115670348,0.02434112,4118.7,4117.5,1.92]
[1760115671158,0.02434112,4118.7,4117.4,4.29]
[1760115671658,0.02434112,4118.7,4117.9,2.42840479]
[1760115671863,0.02434112,4118.7,4117.9,2.42840855]
[1760115672065,0.4431,4118.6,4116.6,0.002]
[1760115672282,0.02434112,4118.5,4116.9,0.47029012]